[Event "GER-ch Blitz 2019"]
[Site "Magdeburg"]
[Date "2019.05.25"]
[Round "13.6"]
[White "Heistermann, Till"]
[Black "Kopylov, Michael"]
[Result "1/2-1/2"]
[ECO "A10"]
[WhiteElo "2181"]
[BlackElo "2413"]
[Annotator "NA"]
[PlyCount "164"]
[EventDate "2019.05.25"]
[EventType "tourn"]
[EventCountry "GER"]
[Tiebreak "Number of wins+Number of black wins"]
[SourceTitle "playchess.com"]
[Source "ChessBase"]
[SourceQuality "1"]
[TimeControl "180+2"]

1. c4 {[%emt 0:00:00]} f5 {[%emt 0:00:00]} 2. g3 {[%emt 0:00:00]} Nf6 {[%emt 0:
00:01]} 3. Bg2 {[%emt 0:00:01]} g6 {[%emt 0:00:00]} 4. Nc3 {[%emt 0:00:01]} Bg7
{[%emt 0:00:01]} 5. Nf3 {[%emt 0:00:04]} d6 {[%emt 0:00:01]} 6. d4 {[%emt 0:00:
01]} O-O {[%emt 0:00:01]} 7. d5 {[%emt 0:00:01]} Na6 {[%emt 0:00:02]} 8. Nd4 {
[%emt 0:00:01]} Nc5 {[%emt 0:00:09]} 9. O-O {[%emt 0:00:03]} a5 {[%emt 0:00:01]
} 10. b3 {[%emt 0:00:06]} Bd7 11. Bb2 {[%emt 0:00:01]} g5 {[%emt 0:00:05]} 12.
Qc2 {[%emt 0:00:05]} f4 {[%emt 0:00:04]} 13. a3 {[%emt 0:00:13]} Qe8 {[%emt 0:
00:04]} 14. b4 {[%emt 0:00:02]} Na6 {[%emt 0:00:12]} 15. Qb3 {[%emt 0:00:08]}
Qh5 {[%emt 0:00:07]} 16. Ne4 {[%emt 0:00:19]} Ng4 {[%emt 0:01:02]} 17. h3 {
[%emt 0:00:01]} Ne5 {[%emt 0:00:08]} 18. g4 {[%emt 0:00:10]} Qh6 {[%emt 0:00:
12]} 19. Ne6 {[%emt 0:00:17]} Bxe6 {[%emt 0:00:06]} 20. dxe6 {[%emt 0:00:01]}
c6 {[%emt 0:00:01]} 21. b5 {[%emt 0:00:04]} Nc7 {[%emt 0:00:07]} 22. Rab1 {
[%emt 0:00:53]} a4 {[%emt 0:00:13]} 23. Qc2 {[%emt 0:00:02]} Nxe6 {[%emt 0:00:
04]} 24. Bxe5 {[%emt 0:00:06]} Bxe5 {[%emt 0:00:02]} 25. bxc6 {[%emt 0:00:02]}
bxc6 {[%emt 0:00:00]} 26. Nd2 {[%emt 0:00:01]} Nd4 {[%emt 0:00:08]} 27. Qd3 {
[%emt 0:00:04]} Rab8 {[%emt 0:00:05]} 28. Nf3 {[%emt 0:00:09]} Qf6 {[%emt 0:00:
22]} 29. Nxd4 {[%emt 0:00:04]} Bxd4 {[%emt 0:00:01]} 30. Bxc6 {[%emt 0:00:04]}
Kg7 {[%emt 0:00:07]} 31. Bxa4 {[%emt 0:00:16]} Bc5 {[%emt 0:00:02]} 32. Bc2 {
[%emt 0:00:02]} Rh8 {[%emt 0:00:11]} 33. Rxb8 {[%emt 0:00:02]} Rxb8 {[%emt 0:
00:04]} 34. Qxh7+ Kf8 35. a4 {[%emt 0:00:16]} Rb2 {[%emt 0:00:03]} 36. Bd3 {
[%emt 0:00:07]} f3 {[%emt 0:00:03]} 37. exf3 {[%emt 0:00:03]} Qe5 {[%emt 0:00:
04]} 38. Qf5+ {[%emt 0:00:04]} Qxf5 {[%emt 0:00:01]} 39. Bxf5 Ra2 40. Bd7 {
[%emt 0:00:04]} Kf7 {[%emt 0:00:02]} 41. Kg2 Kf6 42. Kg3 {[%emt 0:00:05]} Rc2 {
[%emt 0:00:08]} 43. h4 {[%emt 0:00:02]} gxh4+ {[%emt 0:00:02]} 44. Kxh4 {
[%emt 0:00:01]} Bxf2+ 45. Kh3 {[%emt 0:00:02]} Bd4 {[%emt 0:00:02]} 46. Bb5 {
[%emt 0:00:04]} Ra2 {[%emt 0:00:02]} 47. Kg3 {[%emt 0:00:02]} e5 {[%emt 0:00:
05]} 48. f4 {[%emt 0:00:05]} Ra3+ {[%emt 0:00:05]} 49. Kh4 {[%emt 0:00:01]}
exf4 {[%emt 0:00:06]} 50. Rxf4+ Ke5 51. Rf5+ {[%emt 0:00:02]} Ke6 {[%emt 0:00:
01]} 52. Kg5 {[%emt 0:00:04]} Be3+ {[%emt 0:00:03]} 53. Kg6 {[%emt 0:00:01]}
Bd4 {[%emt 0:00:02]} 54. Bc6 {[%emt 0:00:04]} Ke7 {[%emt 0:00:12]} 55. g5 {
[%emt 0:00:02]} Be5 {[%emt 0:00:02]} 56. Rf7+ {[%emt 0:00:02]} Kd8 {[%emt 0:00:
01]} 57. Rd7+ {[%emt 0:00:01]} Kc8 {[%emt 0:00:00]} 58. Rf7 {[%emt 0:00:02]}
Kd8 {[%emt 0:00:01]} 59. Kf5 {[%emt 0:00:03]} Kc8 {[%emt 0:00:02]} 60. Ke6 {
[%emt 0:00:01]} Rg3 {[%emt 0:00:01]} 61. Rf5 {[%emt 0:00:02]} Kd8 {[%emt 0:00:
01]} 62. a5 {[%emt 0:00:00]} Kc7 {[%emt 0:00:02]} 63. Bb5 {[%emt 0:00:01]} Re3
{[%emt 0:00:03]} 64. a6 {[%emt 0:00:03]} Kb6 {[%emt 0:00:03]} 65. Kf7 {[%emt 0:
00:02]} Bd4 {[%emt 0:00:03]} 66. g6 {[%emt 0:00:01]} Rg3 {[%emt 0:00:01]} 67.
Rd5 {[%emt 0:00:04]} Be5 {[%emt 0:00:01]} 68. Rd1 {[%emt 0:00:02]} Rf3+ {
[%emt 0:00:00]} 69. Ke6 {[%emt 0:00:02]} Rf6+ {[%emt 0:00:01]} 70. Kd5 {
[%emt 0:00:01]} Rxg6 {[%emt 0:00:01]} 71. Rb1 {[%emt 0:00:01]} Ka7 {[%emt 0:00:
00]} 72. Rh1 {[%emt 0:00:02]} Rg7 {[%emt 0:00:02]} 73. Rh6 {[%emt 0:00:02]} Rc7
{[%emt 0:00:01]} 74. Re6 {[%emt 0:00:03]} Kb6 {[%emt 0:00:02]} 75. Ke4 {
[%emt 0:00:01]} Rg7 {[%emt 0:00:02]} 76. Rxe5 {[%emt 0:00:02]} dxe5 {[%emt 0:
00:01]} 77. Kxe5 {[%emt 0:00:01]} Rg1 {[%emt 0:00:09]} 78. Kd4 {[%emt 0:00:01]}
Rd1+ {[%emt 0:00:01]} 79. Ke5 {[%emt 0:00:01]} Rd2 {[%emt 0:00:02]} 80. Ke6 {
[%emt 0:00:01]} Rd1 {[%emt 0:00:00]} 81. Ke5 {[%emt 0:00:01]} Rd2 {[%emt 0:00:
01]} 82. Ke4 {[%emt 0:00:01]} Rd1 {[%emt 0:00:02]} 1/2-1/2

[Event "GER-ch Blitz 2019"]
[Site "Magdeburg"]
[Date "2019.05.25"]
[Round "13.7"]
[White "Kirchner, Thomas"]
[Black "Barzen, Pascal"]
[Result "0-1"]
[ECO "B14"]
[WhiteElo "2311"]
[BlackElo "2292"]
[Annotator "NA"]
[PlyCount "164"]
[EventDate "2019.05.25"]
[EventType "tourn"]
[EventCountry "GER"]
[Tiebreak "Number of wins+Number of black wins"]
[SourceTitle "playchess.com"]
[Source "ChessBase"]
[SourceQuality "1"]
[TimeControl "180+2"]

1. e4 {[%emt 0:00:00]} c6 {[%emt 0:00:00]} 2. d4 {[%emt 0:00:00]} d5 {[%emt 0:
00:00]} 3. exd5 {[%emt 0:00:01]} cxd5 {[%emt 0:00:00]} 4. c4 {[%emt 0:00:00]}
Nf6 {[%emt 0:00:01]} 5. Nc3 {[%emt 0:00:01]} e6 {[%emt 0:00:01]} 6. c5 {
[%emt 0:00:01]} Nc6 {[%emt 0:00:03]} 7. Nf3 {[%emt 0:00:01]} Bd7 {[%emt 0:00:
01]} 8. Bb5 {[%emt 0:00:01]} Ne4 {[%emt 0:00:04]} 9. O-O {[%emt 0:00:03]} Nxc3
{[%emt 0:00:01]} 10. bxc3 {[%emt 0:00:01]} Be7 {[%emt 0:00:01]} 11. Re1 {
[%emt 0:00:02]} O-O {[%emt 0:00:02]} 12. Rb1 {[%emt 0:00:01]} Rb8 {[%emt 0:00:
14]} 13. Bf4 {[%emt 0:00:02]} Rc8 {[%emt 0:00:03]} 14. Ba4 {[%emt 0:00:15]} b6
{[%emt 0:00:27]} 15. cxb6 {[%emt 0:00:05]} axb6 {[%emt 0:00:00]} 16. Bc2 {
[%emt 0:00:08]} Na5 {[%emt 0:00:17]} 17. Qd3 {[%emt 0:00:08]} g6 {[%emt 0:00:
02]} 18. Ne5 {[%emt 0:00:00]} Nc4 {[%emt 0:00:08]} 19. Bb3 {[%emt 0:00:34]}
Nxe5 {[%emt 0:00:18]} 20. Bxe5 {[%emt 0:00:01]} b5 {[%emt 0:00:12]} 21. Qf3 {
[%emt 0:00:06]} Qa5 {[%emt 0:00:10]} 22. Re3 {[%emt 0:00:04]} Rc6 {[%emt 0:00:
25]} 23. Rbe1 {[%emt 0:00:54]} Rfc8 {[%emt 0:00:09]} 24. Qf4 {[%emt 0:00:19]}
Rxc3 {[%emt 0:00:20]} 25. h4 {[%emt 0:00:01]} Rxe3 {[%emt 0:00:26]} 26. Rxe3 {
[%emt 0:00:02]} f6 {[%emt 0:00:08]} 27. Bd6 {[%emt 0:00:10]} Bxd6 {[%emt 0:00:
02]} 28. Qxd6 {[%emt 0:00:01]} Rc1+ {[%emt 0:00:01]} 29. Kh2 {[%emt 0:00:01]}
Qc7 {[%emt 0:00:01]} 30. Qxc7 {[%emt 0:00:07]} Rxc7 {[%emt 0:00:01]} 31. f4 {
[%emt 0:00:01]} Kg7 {[%emt 0:00:03]} 32. Kg3 {[%emt 0:00:01]} b4 {[%emt 0:00:
02]} 33. Kf2 {[%emt 0:00:02]} Rc1 {[%emt 0:00:03]} 34. Re2 {[%emt 0:00:04]} Kf7
{[%emt 0:00:02]} 35. g3 {[%emt 0:00:04]} Bb5 {[%emt 0:00:01]} 36. Rd2 {[%emt 0:
00:02]} Rf1+ {[%emt 0:00:03]} 37. Kg2 {[%emt 0:00:01]} Rc1 {[%emt 0:00:01]} 38.
Kf2 {[%emt 0:00:01]} Rc3 {[%emt 0:00:00]} 39. Rb2 {[%emt 0:00:07]} Rd3 {
[%emt 0:00:05]} 40. Bc2 {[%emt 0:00:11]} Rxd4 {[%emt 0:00:02]} 41. Ke3 {
[%emt 0:00:00]} Rc4 {[%emt 0:00:02]} 42. Kd2 {[%emt 0:00:03]} e5 {[%emt 0:00:
08]} 43. a3 {[%emt 0:00:01]} Rd4+ {[%emt 0:00:02]} 44. Kc1 {[%emt 0:00:02]}
exf4 {[%emt 0:00:03]} 45. gxf4 {[%emt 0:00:01]} Rxf4 {[%emt 0:00:01]} 46. axb4
{[%emt 0:00:01]} Rxh4 {[%emt 0:00:01]} 47. Bd1 {[%emt 0:00:01]} Rf4 {[%emt 0:
00:06]} 48. Ra2 {[%emt 0:00:03]} Rxb4 {[%emt 0:00:03]} 49. Ra7+ {[%emt 0:00:00]
} Ke6 {[%emt 0:00:00]} 50. Rb7 {[%emt 0:00:01]} Rc4+ {[%emt 0:00:02]} 51. Kd2 {
[%emt 0:00:02]} Bc6 {[%emt 0:00:01]} 52. Rb6 {[%emt 0:00:01]} Ke5 {[%emt 0:00:
01]} 53. Be2 {[%emt 0:00:01]} Rc5 {[%emt 0:00:01]} 54. Rb8 {[%emt 0:00:00]} h5
{[%emt 0:00:01]} 55. Rg8 {[%emt 0:00:03]} Bb5 {[%emt 0:00:08]} 56. Bd1 {
[%emt 0:00:03]} g5 {[%emt 0:00:02]} 57. Bxh5 {[%emt 0:00:02]} d4 {[%emt 0:00:
02]} 58. Rd8 {[%emt 0:00:01]} d3 {[%emt 0:00:03]} 59. Bd1 {[%emt 0:00:01]} f5 {
[%emt 0:00:03]} 60. Rg8 {[%emt 0:00:03]} g4 {[%emt 0:00:01]} 61. Rg5 {[%emt 0:
00:02]} Kf6 {[%emt 0:00:02]} 62. Rg8 Rc7 63. Ke3 {[%emt 0:00:03]} Re7+ {
[%emt 0:00:03]} 64. Kd2 {[%emt 0:00:00]} Rg7 {[%emt 0:00:02]} 65. Rb8 {[%emt 0:
00:01]} Bc4 {[%emt 0:00:04]} 66. Rc8 {[%emt 0:00:02]} Bd5 {[%emt 0:00:05]} 67.
Rd8 {[%emt 0:00:03]} Ke5 {[%emt 0:00:01]} 68. Kxd3 {[%emt 0:00:03]} g3 {
[%emt 0:00:00]} 69. Re8+ {[%emt 0:00:05]} Kf4 {[%emt 0:00:01]} 70. Re1 {
[%emt 0:00:01]} g2 {[%emt 0:00:02]} 71. Rg1 {[%emt 0:00:01]} Kg3 {[%emt 0:00:
00]} 72. Ke3 {[%emt 0:00:02]} Ra7 {[%emt 0:00:03]} 73. Kd4 {[%emt 0:00:02]} Be4
{[%emt 0:00:01]} 74. Bb3 {[%emt 0:00:02]} Kf2 {[%emt 0:00:02]} 75. Rc1 {
[%emt 0:00:01]} g1=Q {[%emt 0:00:02]} 76. Rxg1 {[%emt 0:00:01]} Kxg1 {[%emt 0:
00:01]} 77. Ke5 {[%emt 0:00:01]} Kf2 {[%emt 0:00:02]} 78. Kf4 {[%emt 0:00:01]}
Rb7 {[%emt 0:00:01]} 79. Bc4 {[%emt 0:00:00]} Rb4 {[%emt 0:00:02]} 80. Be6 {
[%emt 0:00:06]} Bd5+ {[%emt 0:00:06]} 81. Kxf5 {[%emt 0:00:01]} Bxe6+ {[%emt 0:
00:01]} 82. Kxe6 {[%emt 0:00:02]} Ke3 0-1

[Event "GER-ch Blitz 2019"]
[Site "Magdeburg"]
[Date "2019.05.25"]
[Round "13.8"]
[White "Hebbinghaus, Holger"]
[Black "Heidrich, Manfred"]
[Result "1/2-1/2"]
[ECO "B20"]
[WhiteElo "2310"]
[BlackElo "2351"]
[Annotator "NA"]
[PlyCount "138"]
[EventDate "2019.05.25"]
[EventType "tourn"]
[EventCountry "GER"]
[Tiebreak "Number of wins+Number of black wins"]
[SourceTitle "playchess.com"]
[Source "ChessBase"]
[SourceQuality "1"]
[TimeControl "180+2"]

1. e4 {[%emt 0:00:00]} c5 {[%emt 0:00:00]} 2. Be2 {[%emt 0:00:00]} Nc6 {
[%emt 0:00:01]} 3. f4 {[%emt 0:00:01]} e6 {[%emt 0:00:03]} 4. Nf3 {[%emt 0:00:
00]} d5 {[%emt 0:00:01]} 5. d3 {[%emt 0:00:01]} Nf6 {[%emt 0:00:02]} 6. e5 {
[%emt 0:00:02]} Nd7 {[%emt 0:00:01]} 7. O-O {[%emt 0:00:03]} Be7 {[%emt 0:00:
01]} 8. c4 {[%emt 0:00:02]} O-O {[%emt 0:00:04]} 9. Nc3 {[%emt 0:00:02]} Nb6 {
[%emt 0:00:42]} 10. Kh1 {[%emt 0:00:22]} f6 {[%emt 0:00:06]} 11. Qe1 {[%emt 0:
00:26]} f5 {[%emt 0:00:19]} 12. b3 {[%emt 0:00:37]} d4 {[%emt 0:00:10]} 13. Nd1
{[%emt 0:00:01]} Kh8 {[%emt 0:00:01]} 14. Rg1 {[%emt 0:00:11]} Bd7 {[%emt 0:00:
02]} 15. h3 {[%emt 0:00:19]} g5 {[%emt 0:00:30]} 16. fxg5 {[%emt 0:00:09]} Qc7
{[%emt 0:00:01]} 17. Bf4 {[%emt 0:00:08]} Be8 {[%emt 0:00:01]} 18. Qg3 {
[%emt 0:00:20]} Bg6 {[%emt 0:00:03]} 19. Nf2 {[%emt 0:00:04]} Nd7 {[%emt 0:00:
04]} 20. Rae1 {[%emt 0:00:08]} a6 {[%emt 0:00:02]} 21. Bd1 {[%emt 0:00:07]} b5
{[%emt 0:00:02]} 22. Nd2 {[%emt 0:00:06]} Rg8 {[%emt 0:00:15]} 23. h4 {[%emt 0:
00:02]} Be8 {[%emt 0:00:07]} 24. Nh3 {[%emt 0:00:07]} Nb6 {[%emt 0:00:12]} 25.
h5 {[%emt 0:00:13]} bxc4 {[%emt 0:00:02]} 26. dxc4 {[%emt 0:00:02]} a5 {
[%emt 0:00:05]} 27. a4 {[%emt 0:00:01]} Nb4 {[%emt 0:00:01]} 28. Nf2 {[%emt 0:
00:02]} Bc6 {[%emt 0:00:02]} 29. Bf3 {[%emt 0:00:04]} Qd8 {[%emt 0:00:05]} 30.
Nh3 {[%emt 0:00:02]} Rb8 {[%emt 0:00:03]} 31. Bxc6 {[%emt 0:00:03]} Nxc6 {
[%emt 0:00:00]} 32. Qf3 {[%emt 0:00:05]} Qc7 {[%emt 0:00:06]} 33. g4 {[%emt 0:
00:02]} Rbf8 {[%emt 0:00:03]} 34. Rgf1 {[%emt 0:00:03]} Nb4 {[%emt 0:00:02]}
35. gxf5 {[%emt 0:00:04]} Rxf5 {[%emt 0:00:02]} 36. Qg4 {[%emt 0:00:02]} Qc6+ {
[%emt 0:00:06]} 37. Qf3 {[%emt 0:00:05]} Qxf3+ {[%emt 0:00:06]} 38. Rxf3 {
[%emt 0:00:01]} Rgf8 {[%emt 0:00:07]} 39. Ref1 {[%emt 0:00:01]} Nd7 {[%emt 0:
00:02]} 40. Ne4 {[%emt 0:00:02]} Nc6 {[%emt 0:00:03]} 41. Ng3 {[%emt 0:00:02]}
R5f7 {[%emt 0:00:03]} 42. g6 {[%emt 0:00:03]} hxg6 {[%emt 0:00:05]} 43. hxg6 {
[%emt 0:00:01]} Rg7 {[%emt 0:00:00]} 44. Bh6 {[%emt 0:00:03]} Rxf3 {[%emt 0:00:
02]} 45. Rxf3 {[%emt 0:00:00]} Rxg6 46. Bd2 {[%emt 0:00:04]} Ndxe5 {[%emt 0:00:
05]} 47. Nf4 {[%emt 0:00:05]} Rg4 {[%emt 0:00:04]} 48. Kg2 {[%emt 0:00:03]}
Nxf3 {[%emt 0:00:03]} 49. Kxf3 {[%emt 0:00:01]} Ne5+ {[%emt 0:00:01]} 50. Kf2 {
[%emt 0:00:04]} Bf8 {[%emt 0:00:06]} 51. Nxe6 {[%emt 0:00:02]} Be7 {[%emt 0:00:
03]} 52. Bf4 {[%emt 0:00:01]} Rg6 {[%emt 0:00:06]} 53. Bxe5+ {[%emt 0:00:01]}
Kg8 {[%emt 0:00:01]} 54. Nf4 {[%emt 0:00:01]} Rb6 {[%emt 0:00:01]} 55. Bc7 Rxb3
{[%emt 0:00:02]} 56. Bxa5 {[%emt 0:00:02]} Bd6 {[%emt 0:00:03]} 57. Ngh5 {
[%emt 0:00:03]} Ra3 {[%emt 0:00:05]} 58. Nf6+ {[%emt 0:00:03]} Kf7 {[%emt 0:00:
02]} 59. N4d5 {[%emt 0:00:01]} Be5 {[%emt 0:00:02]} 60. Ne4 {[%emt 0:00:01]}
Rxa4 {[%emt 0:00:02]} 61. Bd2 {[%emt 0:00:01]} Ra2 {[%emt 0:00:01]} 62. Ke2 {
[%emt 0:00:02]} Rc2 {[%emt 0:00:03]} 63. Nxc5 {[%emt 0:00:02]} Rxc4 {[%emt 0:
00:02]} 64. Nd3 {[%emt 0:00:01]} Bg7 {[%emt 0:00:02]} 65. N5f4 {[%emt 0:00:02]}
Ra4 {[%emt 0:00:02]} 66. Kf3 {[%emt 0:00:01]} Ra3 67. Ke4 {[%emt 0:00:01]} Bh6
{[%emt 0:00:02]} 68. Be1 {[%emt 0:00:02]} Bxf4 {[%emt 0:00:01]} 69. Nxf4 {
[%emt 0:00:02]} Ra1 1/2-1/2

[Event "GER-ch Blitz 2019"]
[Site "Magdeburg"]
[Date "2019.05.25"]
[Round "13.9"]
[White "Svane, Frederik"]
[Black "Krause, Benedict"]
[Result "1-0"]
[ECO "B13"]
[WhiteElo "2342"]
[BlackElo "2434"]
[Annotator "NA"]
[PlyCount "83"]
[EventDate "2019.05.25"]
[EventType "tourn"]
[EventCountry "GER"]
[Tiebreak "Number of wins+Number of black wins"]
[SourceTitle "playchess.com"]
[Source "ChessBase"]
[SourceQuality "1"]
[TimeControl "180+2"]

1. e4 {[%emt 0:00:00]} c6 {[%emt 0:00:00]} 2. d4 {[%emt 0:00:01]} d5 {[%emt 0:
00:00]} 3. exd5 {[%emt 0:00:01]} cxd5 {[%emt 0:00:00]} 4. Bd3 {[%emt 0:00:02]}
Nc6 {[%emt 0:00:01]} 5. c3 {[%emt 0:00:00]} Qc7 {[%emt 0:00:01]} 6. Ne2 {
[%emt 0:00:01]} Bg4 {[%emt 0:00:02]} 7. O-O {[%emt 0:00:01]} e6 {[%emt 0:00:16]
} 8. Qe1 {[%emt 0:00:02]} Nf6 {[%emt 0:00:13]} 9. f3 {[%emt 0:00:05]} Bh5 {
[%emt 0:00:02]} 10. Qh4 {[%emt 0:00:01]} h6 {[%emt 0:00:31]} 11. Ng3 {[%emt 0:
00:45]} Bg6 {[%emt 0:00:17]} 12. Bxg6 {[%emt 0:00:01]} fxg6 {[%emt 0:00:01]}
13. Re1 {[%emt 0:00:32]} Kf7 {[%emt 0:00:01]} 14. Nf1 {[%emt 0:00:32]} Bd6 {
[%emt 0:00:02]} 15. Nbd2 {[%emt 0:00:18]} Rae8 {[%emt 0:00:05]} 16. Nb3 {
[%emt 0:00:02]} g5 {[%emt 0:00:14]} 17. Qf2 {[%emt 0:00:16]} e5 {[%emt 0:00:02]
} 18. Be3 {[%emt 0:00:38]} b6 {[%emt 0:00:02]} 19. dxe5 {[%emt 0:00:04]} Nxe5 {
[%emt 0:00:02]} 20. Qc2 {[%emt 0:00:06]} Rhf8 {[%emt 0:00:03]} 21. Rad1 {
[%emt 0:00:02]} Kg8 {[%emt 0:00:01]} 22. Nd4 Qd7 {[%emt 0:00:19]} 23. Qf5 {
[%emt 0:00:11]} Qf7 {[%emt 0:00:25]} 24. Re2 {[%emt 0:00:03]} Nc4 {[%emt 0:00:
05]} 25. Bc1 {[%emt 0:00:02]} Bc5 {[%emt 0:00:07]} 26. Rxe8 Rxe8 27. Kh1 {
[%emt 0:00:03]} Bxd4 {[%emt 0:00:09]} 28. cxd4 {[%emt 0:00:00]} Re2 {[%emt 0:
00:02]} 29. Qd3 {[%emt 0:00:03]} Qe6 {[%emt 0:00:03]} 30. b3 {[%emt 0:00:01]}
Nd6 {[%emt 0:00:06]} 31. a4 {[%emt 0:00:01]} Nf5 {[%emt 0:00:02]} 32. Bd2 {
[%emt 0:00:03]} Nh4 {[%emt 0:00:02]} 33. Ne3 {[%emt 0:00:01]} Rxe3 {[%emt 0:00:
29]} 34. Qxe3 {[%emt 0:00:01]} Qf5 {[%emt 0:00:01]} 35. Re1 {[%emt 0:00:04]}
Qc2 {[%emt 0:00:02]} 36. Qc3 {[%emt 0:00:01]} Qf5 {[%emt 0:00:02]} 37. Rc1 {
[%emt 0:00:02]} g4 {[%emt 0:00:02]} 38. Qc8+ {[%emt 0:00:01]} Qxc8 {[%emt 0:00:
00]} 39. Rxc8+ {[%emt 0:00:00]} Kf7 {[%emt 0:00:01]} 40. fxg4 {[%emt 0:00:01]}
Ne4 {[%emt 0:00:01]} 41. Be1 {[%emt 0:00:01]} Kg6 {[%emt 0:00:03]} 42. Bxh4 {
[%emt 0:00:02]} 1-0

[Event "GER-ch Blitz 2019"]
[Site "Magdeburg"]
[Date "2019.05.25"]
[Round "13.10"]
[White "Schneider, Ilja"]
[Black "Schulze, Marc"]
[Result "1-0"]
[ECO "B22"]
[WhiteElo "2494"]
[BlackElo "2220"]
[Annotator "ChessBase"]
[PlyCount "118"]
[EventDate "2019.05.25"]
[EventType "tourn"]
[EventCountry "GER"]
[Tiebreak "Number of wins+Number of black wins"]
[SourceTitle "playchess.com"]
[Source "ChessBase"]
[SourceQuality "1"]
[TimeControl "180+2"]

1. e4 {[%emt 0:00:00]} c5 {[%emt 0:00:00]} 2. c3 {[%emt 0:00:00]} d5 {[%emt 0:
00:00]} 3. exd5 {[%emt 0:00:01]} Qxd5 {[%emt 0:00:00]} 4. Nf3 {[%emt 0:00:01]}
Nf6 {[%emt 0:00:01]} 5. Na3 {[%emt 0:00:01]} Nc6 {[%emt 0:00:02]} 6. Be2 {
[%emt 0:00:01]} Bg4 {[%emt 0:00:02]} 7. O-O {[%emt 0:00:02]} e6 {[%emt 0:00:01]
} 8. h3 {[%emt 0:00:01]} Bh5 {[%emt 0:00:01]} 9. d4 {[%emt 0:00:01]} cxd4 {
[%emt 0:00:07]} 10. Nb5 {[%emt 0:00:01]} Qd8 {[%emt 0:00:01]} 11. Nfxd4 {
[%emt 0:00:03]} Bxe2 {[%emt 0:00:05]} 12. Qxe2 {[%emt 0:00:01]} Nxd4 {[%emt 0:
00:01]} 13. Nxd4 {[%emt 0:00:01]} Be7 {[%emt 0:00:09]} 14. Rd1 {[%emt 0:00:03]}
Qb6 {[%emt 0:00:16]} 15. Qb5+ {[%emt 0:00:40]} Qxb5 {[%emt 0:00:08]} 16. Nxb5 {
[%emt 0:00:01]} O-O {[%emt 0:00:07]} 17. Be3 {[%emt 0:00:21]} a6 {[%emt 0:00:
03]} 18. Nd6 {[%emt 0:00:02]} Bxd6 {[%emt 0:00:07]} 19. Rxd6 {[%emt 0:00:01]}
Rfd8 {[%emt 0:00:02]} 20. Rad1 {[%emt 0:00:06]} Rxd6 {[%emt 0:00:14]} 21. Rxd6
{[%emt 0:00:00]} Kf8 {[%emt 0:00:09]} 22. Rb6 {[%emt 0:00:15]} Rb8 {[%emt 0:00:
01]} 23. Bf4 {[%emt 0:00:21]} Nd5 {[%emt 0:00:01]} 24. Bd6+ {[%emt 0:00:25]}
Ke8 {[%emt 0:00:00]} 25. Rb3 {[%emt 0:00:09]} Rd8 {[%emt 0:00:01]} 26. Bg3 {
[%emt 0:00:09]} Rd7 {[%emt 0:00:12]} 27. c4 {[%emt 0:00:02]} Nf6 {[%emt 0:00:
02]} 28. Be5 {[%emt 0:00:10]} Ke7 {[%emt 0:00:02]} 29. Bxf6+ {[%emt 0:00:09]}
Kxf6 {[%emt 0:00:09]} 30. Kf1 {[%emt 0:00:01]} Ke5 {[%emt 0:00:00]} 31. Ke2 {
[%emt 0:00:11]} f5 {[%emt 0:00:13]} 32. Re3+ {[%emt 0:00:06]} Kd6 {[%emt 0:00:
06]} 33. b4 {[%emt 0:00:10]} e5 {[%emt 0:00:09]} 34. g4 {[%emt 0:00:04]} g6 {
[%emt 0:00:06]} 35. gxf5 {[%emt 0:00:02]} gxf5 {[%emt 0:00:00]} 36. Rg3 {
[%emt 0:00:01]} e4 {[%emt 0:00:09]} 37. Rg8 {[%emt 0:00:14]} Ke5 {[%emt 0:00:
06]} 38. Rc8 {[%emt 0:00:02]} Kd4 {[%emt 0:00:05]} 39. c5 {[%emt 0:00:00]} Kc4
{[%emt 0:00:04]} 40. c6 {[%emt 0:00:01]} bxc6 41. Rxc6+ {[%emt 0:00:01]} Kb5 {
[%emt 0:00:07]} 42. Rc5+ {[%emt 0:00:01]} Kxb4 {[%emt 0:00:02]} 43. Rxf5 {
[%emt 0:00:00]} Rd3 {[%emt 0:00:03]} 44. Rh5 {[%emt 0:00:04]} Rd7 {[%emt 0:00:
08]} 45. Ke3 {[%emt 0:00:00]} Rf7 {[%emt 0:00:02]} 46. h4 {[%emt 0:00:01]} a5
47. Rh6 {[%emt 0:00:06]} Re7 {[%emt 0:00:11]} 48. Rh5 {[%emt 0:00:05]} a4 {
[%emt 0:00:03]} 49. Rd5 {[%emt 0:00:01]} Ka3 {[%emt 0:00:06]} 50. Rd2 {[%emt 0:
00:01]} Re6 {[%emt 0:00:07]} 51. Rc2 {[%emt 0:00:01]} Rb6 {[%emt 0:00:07]} 52.
h5 {[%emt 0:00:03]} Rb4 {[%emt 0:00:07]} 53. h6 {[%emt 0:00:05]} Rb6 {[%emt 0:
00:02]} 54. Kxe4 {[%emt 0:00:01]} Rxh6 {[%emt 0:00:00]} 55. f4 {[%emt 0:00:01]}
Rb6 {[%emt 0:00:03]} 56. f5 {[%emt 0:00:00]} h5 {[%emt 0:00:05]} 57. Ke5 {
[%emt 0:00:02]} h4 {[%emt 0:00:02]} 58. f6 {[%emt 0:00:00]} h3 {[%emt 0:00:08]}
59. f7 {[%emt 0:00:01]} Rb8 {[%emt 0:00:00]} 1-0

[Event "GER-ch Blitz 2019"]
[Site "Magdeburg"]
[Date "2019.05.25"]
[Round "13.11"]
[White "Zelbel, Patrick"]
[Black "Carow, Johannes"]
[Result "0-1"]
[ECO "B13"]
[WhiteElo "2439"]
[BlackElo "2445"]
[Annotator "NA"]
[PlyCount "40"]
[EventDate "2019.05.25"]
[EventType "tourn"]
[EventCountry "GER"]
[Tiebreak "Number of wins+Number of black wins"]
[SourceTitle "playchess.com"]
[Source "ChessBase"]
[SourceQuality "1"]
[TimeControl "180+2"]

1. e4 {[%emt 0:00:00]} c6 {[%emt 0:00:00]} 2. d4 {[%emt 0:00:02]} d5 {[%emt 0:
00:00]} 3. exd5 {[%emt 0:00:01]} cxd5 {[%emt 0:00:01]} 4. Bd3 {[%emt 0:00:01]}
Nc6 {[%emt 0:00:01]} 5. c3 {[%emt 0:00:00]} Qc7 {[%emt 0:00:00]} 6. Na3 {
[%emt 0:00:02]} g6 {[%emt 0:00:11]} 7. Nb5 {[%emt 0:00:21]} Qb8 {[%emt 0:00:02]
} 8. Qf3 {[%emt 0:00:16]} Bg7 {[%emt 0:00:33]} 9. Qxd5 {[%emt 0:00:32]} Nf6 {
[%emt 0:00:02]} 10. Qf3 {[%emt 0:00:06]} O-O {[%emt 0:00:07]} 11. Ne2 e5 {
[%emt 0:00:02]} 12. Qg3 {[%emt 0:00:46]} a6 {[%emt 0:00:28]} 13. Na3 {[%emt 0:
00:12]} Nh5 {[%emt 0:00:16]} 14. Qf3 {[%emt 0:00:11]} exd4 {[%emt 0:00:07]} 15.
cxd4 {[%emt 0:00:12]} Bxd4 {[%emt 0:00:15]} 16. O-O {[%emt 0:00:05]} Ne5 {
[%emt 0:00:32]} 17. Qd5 {[%emt 0:00:23]} Be6 {[%emt 0:00:28]} 18. Qxd4 Rd8 {
[%emt 0:00:01]} 19. Qh4 {[%emt 0:00:05]} Rxd3 {[%emt 0:00:09]} 20. Bg5 {
[%emt 0:00:09]} Rh3 {[%emt 0:00:07]} 0-1